Cogmind - Beta 13 @@@ ROGUE MODE // 2024.05.14 @ 00:53:40 // Halloween2019/Abominations Player: boggy Result: Destroyed by Lesser Abomination with Etherial Claws Performance ------------- Evolutions (0) 0 Regions Visited (1) 200 Robots Destroyed (8) 40 Value Destroyed (242) 242 Prototype IDs (0) 0 Alien Tech Used (0) 0 Bonus (0) 0 TOTAL SCORE: 482 Bonus ------- None Cogmind --------- Core Integrity 0/250 Matter 232/300 Energy 230/250 System Corruption 0% Temperature Hot (271) Movement Rolling (95) Ox1 Location -10/Materials Parts ------- > --- POWER (1) -------- Ion Engine > --- PROPULSION (2) --- Wheel > --- UTILITY (2) ------ Seismic Detector Light Armor Plating > --- WEAPON (2) ------- Small Laser Beam Cannon > --- INVENTORY (5) ---- (None) Peak State ------------ > --- POWER ------------ Ion Engine > --- PROPULSION ------- Wheel > --- UTILITY ---------- Improved Terrain Scanner Seismic Detector > --- WEAPON ----------- Small Laser Assault Rifle > --- INVENTORY -------- (None) [Rating: 8] Favorites ----------- Power Ion Engine Engine Ion Engine Propulsion Wheel Wheel Wheel Utility Seismic Detector Device Seismic Detector Protection Light Armor Plating Weapon Assault Rifle Energy Gun Small Laser Energy Cannon Beam Cannon Ballistic Gun Assault Rifle Build | -11 -10 ------- Run | Yrd Mat Slots Evolved . | . . Power . | . . Propulsion . | . . Utility . | . . Weapon . | . . Parts Attached 9 | 4 5 Power 1 | 1 . Engine 1 | 1 . Core . | . . Reactor . | . . Propulsion 1 | 1 . Treads . | . . Leg . | . . Wheel 1 | 1 . Hover . | . . Flight . | . . Utility 3 | . 3 Device 2 | . 2 Storage . | . . Processor . | . . Hackware . | . . Protection 1 | . 1 Artifact . | . . Weapon 4 | 2 2 Energy Gun 2 | 1 1 Energy Cannon 1 | . 1 Ballistic Gun 1 | 1 . Ballistic Cannon . | . . Launcher . | . . Special Weapon . | . . Impact Weapon . | . . Slashing Weapon . | . . Piercing Weapon . | . . Special Melee Weapon . | . . Unidentified Prototypes . | . . Parts Lost 2 | . 2 Power . | . . Propulsion . | . . Utility 1 | . 1 Weapon 1 | . 1 Highest Loss Streak 2 | . 2 To Critical Strikes . | . . Average Slot Usage (%) 81 | . 81 Engine 14 | . 14 Wheel 14 | . 14 Device 23 | . 23 Protection 3 | . 3 Energy Gun 4 | . 4 Energy Cannon 12 | . 12 Ballistic Gun 9 | . 9 Naked Turns . | . . Heaviest Build 13 | 8 13 Greatest Support 10 | 10 10 Greatest Overweight (x) 1 | . 1 Average Overweight (x) . | . . Largest Inventory Capacity 5 | 5 5 Average Capacity 5 | 5 5 Most Carried 4 | 4 1 Average Carried . | . . Final Capacity 5 | 5 5 Final Carried 2 | 2 . Class Distribution -------------------- 100% | Mutant Dominant Class ---------------- Mutant | -10/Materials Resources | -11 -10 ----------- Run | Yrd Mat Matter Collected 302 | 120 182 Remotely . | . . Salvage Created 302 | 120 182 Parts 19 | 7 12 Haulers Intercepted . | . . Recyclers Shooed 1 | 1 . Parts Field Recycled . | . . Retrieved Matter . | . . Parts Self-Destructed . | . . Prevented . | . . Kills | -11 -10 ------- Run | Yrd Mat Combat Hostiles Destroyed 5 | . 5 Guns 1 | . 1 Cannons 4 | . 4 Classes Destroyed 4 | 2 2 Tunneler 2 | 2 . Recycler 1 | 1 . Grunt 3 | . 3 Abomination 2 | . 2 Best Kill Streak 3 | 3 3 Combat Bots Only 3 | . 3 Max Kills in Single Turn 1 | 1 1 Gunslinging . | . . Exploded . | . . Melee . | . . Uniques/NPCs Destroyed . | . . Combat | -11 -10 -------- Run | Yrd Mat Hostile Shots Fired 35 | . 35 Missed 6 | . 6 Damage Taken 540 | . 540 Core 258 | . 258 Absorbed by Shields . | . . Core Remaining (%) 100 | 100 . Volleys Fired 43 | 10 33 Largest 2 | 2 2 Hottest 100 | 60 100 Shots Fired 80 | 20 60 Gun 49 | 20 29 Cannon 31 | . 31 Launcher . | . . Special . | . . Kinetic 30 | 10 20 Thermal 50 | 10 40 Explosive . | . . Electromagnetic . | . . Robot Hit Streak 7 | 6 7 Robot Miss Streak 5 | 2 5 Penetration Max . | . . Secondary Targets . | . . Shots Hit Robots 50 | 13 37 Core Hits 15 | 4 11 Critical Kills . | . . Critical Parts Destroyed 1 | . 1 Critical Strikes 1 | . 1 Destroy 1 | . 1 Melee Attacks . | . . Impact . | . . Slashing . | . . Piercing . | . . Sneak Attacks . | . . Combat Hostiles . | . . Follow-up Attacks . | . . Damage Inflicted 820 | 170 650 Guns 379 | 170 209 Cannons 441 | . 441 Explosions . | . . Melee . | . . Ramming . | . . Kinetic 232 | 78 154 Thermal 588 | 92 496 Explosive . | . . Electromagnetic . | . . Impact . | . . Slashing . | . . Piercing . | . . Highest Corruption . | . . Average Corruption . | . . Corruption Purged . | . . Corruption Blocked . | . . Overload Shots . | . . Overflow Damage 35 | . 35 Projectiles 35 | . 35 Explosions . | . . Melee . | . . Knockbacks . | . . Impact . | . . Kinetic . | . . Secondary . | . . Self-Inflicted Damage . | . . Shots . | . . Rammed . | . . Targets Rammed . | . . Kicked . | . . Crushed . | . . Highest Temperature 302 | . 302 Average Temperature 119 | . 119 Received Heat Transfer 102 | . 102 Siege Activations . | . . Robots Corrupted . | . . Combat Hostiles . | . . Parts Fried . | . . Impact Corruptions . | . . Robots Melted . | . . Combat Hostiles . | . . Parts Melted . | . . Heat Transferred 665 | 200 465 Parts Sabotaged . | . . Parts Stolen . | . . Parts Stripped . | . . Power Chain Reactions . | . . Alert | -11 -10 ------- Run | Yrd Mat Peak Influence 94 | 15 94 Initial 9 | . 9 Average 37 | 6 47 Maximum Alert Level . | . . Low Security (%) 100 | 100 100 Level 1 . | . . Level 2 . | . . Level 3 . | . . Level 4 . | . . Level 5 . | . . High Security . | . . Max Security . | . . Squads Dispatched 4 | . 4 Investigation 3 | . 3 Extermination . | . . Reinforcement 1 | . 1 Assault . | . . Garrison . | . . Intercept . | . . Searches Triggered . | . . Construction Impeded . | . . Haulers Reinforced . | . . Active Scanning Responses . | . . Cargo Convoy Interrupts . | . . Stealth | -11 -10 --------- Run | Yrd Mat Distress Signals 3 | . 3 Communications Jammed . | . . Distress Signals . | . . Times Spotted 9 | . 9 Peak Tracking Total 3 | . 3 Tactical Retreats . | . . Traps | -11 -10 ------- Run | Yrd Mat Traps Triggered . | . . Indirectly . | . . Trap Hack Attempts . | . . Triggered . | . . Disarmed . | . . Reprogrammed . | . . Reused . | . . Traps Extracted . | . . Installed . | . . Triggered . | . . Machines | -11 -10 ---------- Run | Yrd Mat Machines Disabled . | . . Max in Single Turn . | . . Machines Repaired . | . . Machines Dismantled . | . . Machines Sabotaged . | . . Overloaded Fab Kills . | . . Hacking | -11 -10 --------- Run | Yrd Mat Machines Accessed 2 | . 2 Terminals 2 | . 2 Fabricators . | . . Repair Stations . | . . Recycling Units . | . . Scanalyzers . | . . Garrison Access . | . . Total Hacks 5 | . 5 Successful 1 | . 1 Failed 4 | . 4 Catastrophic . | . . Database Lockouts . | . . Manual . | . . Terminals 5 | . 5 Fabricators . | . . Repair Stations . | . . Recycling Units . | . . Scanalyzers . | . . Garrison Access . | . . Terminal Hacks 1 | . 1 Locate Traps 1 | . 1 Fabricator Hacks . | . . Repair Station Hacks . | . . Recycling Unit Hacks . | . . Scanalyzer . | . . Garrison Access Hacks . | . . Unauthorized Hacks . | . . Terminals . | . . Fabricators . | . . Repair Stations . | . . Recycling Units . | . . Scanalyzers . | . . Garrison Access . | . . Data Cores Recovered . | . . Used . | . . Hacking Detections 2 | . 2 Full Trace Events 1 | . 1 Feedback Events . | . . Feedback Blocked . | . . Robot Schematics Acquired . | . . Robots Built . | . . Authchips . | . . Time . | . . Total Robot Build Rating . | . . Part Schematics Acquired . | . . Parts Built . | . . Authchips . | . . Time . | . . Total Part Build Rating . | . . Parts Repaired . | . . Time . | . . Parts Recycled . | . . Recycled Matter . | . . Retrieved Matter . | . . Retrieved Components . | . . Parts Scanalyzed . | . . Part Schematics Acquired . | . . Parts Damaged . | . . Bothacking | -11 -10 ------------ Run | Yrd Mat Used RIF Installer . | . . Robots Hacked . | . . Non-combat . | . . Combat . | . . Robot Hacks Applied . | . . Relay Couplers Released . | . . Fabnet Peak Effective % . | . . Robots Rewired . | . . Allies Hacked . | . . Hacks Repelled . | . . Allies | -11 -10 -------- Run | Yrd Mat Total Allies . | . . Largest Group . | . . Highest-Rated Group . | . . Highest-Rated Ally . | . . Total Orders . | . . Ally Attacks . | . . Total Damage . | . . Kills . | . . Allies Corrupted . | . . Allies Melted . | . . Intel | -11 -10 ------- Run | Yrd Mat Robot Analysis Total . | . . Derelict Logs Recovered . | . . Drone Launches . | . . Drone Recoveries . | . . Exploration | -11 -10 ------------- Run | Yrd Mat Turns Passed 300 | 73 227 Spaces Moved 185 | 45 140 Core 9 | 9 . Treads . | . . Legs . | . . Wheels 176 | 36 140 Hover . | . . Flight . | . . Fastest Speed 50 | 50 80 Average Speed 86 | 74 90 Slowest Speed 95 | 80 95 Overloaded Moves . | . . Propulsion Burnouts . | . . Robots Hopped . | . . Cave-ins Triggered . | . . Exploration Rate (%) 13 | 4 22 Regions Visited 1 Branch Regions . Pre-discovered Areas . | . . Known Exits Taken . | . . Unknown Exits Taken 1 | 1 . Scrap Searched . | . . Spaces Dug . | . . Terrain Destroyed . | . . Melee . | . . Projectile . | . . AOE . | . . Terrain Rammed . | . . Walls Destroyed . | . . Machines Disabled . | . . Actions | -11 -10 --------- Run | Yrd Mat Total 247 | 64 183 Wait . | . . Move 184 | 44 140 Hop . | . . Pick Up 9 | 6 3 Fast Attach . | . . Attach 9 | 4 5 Detach 1 | . 1 Swap . | . . Drop 1 | . 1 Fire 43 | 10 33 Melee . | . . Ram . | . . Kick . | . . Crush . | . . Escape Stasis . | . . Rewire . | . . Trap . | . . Miscellaneous . | . . Route ------- -11/Scrapyard -10/Materials History --------- Turn | Location | Event 8 | -11/Scrapyard | Discovered new exit (range 16) 74 | -11/Scrapyard | Entered Materials 76 | -10/Materials | Discovered new exit (range 14) 223 | -10/Materials | Core integrity fell below 50% 300 | -10/Materials | Core integrity fell below 20% 301 | -10/Materials | Destroyed by Lesser Abomination with Etherial Claws Last Messages --------------- 00222_ Critical hit (Intensify). 00223_ Lesser Abomination absorbs Sml. Laser. 00227_ Destroyed Ion Engine. 00232_ Lesser Abomination destroyed. 00235_ Acquired 29 matter. 00236_ Acquired 81 matter. 00239_ Acquired Sml. Laser. 00250_ Acquired Lgt. Armor Plating. 00254_ K-01 Serf collects debris. 00267_ Connecting with Terminal... 00267_ ALERT: Suspicious activity at Terminal M005. Dispatching Investigation squad. 00269_ K-01 Serf system corruption misinterpreted. 00269_ K-01 Serf triggered Shock Trap. 00269_ The floor emits a surge of raw power. 00270_ K-01 Serf system terminally corrupted. 00281_ Acquired 39 matter. 00295_ Destroyed Hvy. EM Pulse Gun. 00298_ Destroyed Hover Unit. 00301_ Destroyed Lgt. Ion Engine. Map ----- +----------------------------------------------------+ | ?????????????????????????????????????????????????? | | ?????????????????????????????????????????????????? | | ?????????????????????????????????????????????????? | | ???#?????????????????????????????????????????????? | | ??????#??????????????????????????????????????????? | | ?????????????#???????????????????????????????????? | | ###########??????????????????????????????????????? | | #/ #??????????????????????????????????????? | | # #??????????????????????????????????????? | | # ##?#?#?????????????????????????????????? | | # #??????????????????????????????????????? | | ?#####+####??????????????????????????????????????? | | ?????# #?????#?#?????????????????????????????????? | | ?????# #?????????????????????????????????????????? | | ?????# #????? ??????????????????????????????????? | | ?????# #?????????? ??????????????????????????????? | | ?????# #????????? ???????????????????????????????? | | ###### #?????????????????????????????????????????? | | # # #?##??????????????????????????????????????? | | # # #?????????????????????????????????????????? | | # # #??????? ? ???????????????????????????????? | | # [ + ##?? ?? ??????????????????????????????????? | | # # ########+##########+######????????????????? | | # "" #% ^ #????????????????? | | # "Y # % %#????????????????? | | # "" #### | A@n #????????????????? | | # #??# % ###+#####/## #????????????????? | | ######### "# =%[ [==#????????????????????? | | # # T# #????????????????????? | | # # "# #????????????????????? | | # # ## #????????????????????? | | # """ #!% ###+#####+##????????????????????? | | # """ !# # #????????????????????????? | | # """ + + #????????????????????????? | | #! #% # #????????????????????????? | | # #! = + ! #????????????????????????? | | # #[##### ## ==! #????????????????????????? | | # "T" # #### #| #????????????????????????? | | # """ # ##? ###########????????????????????????? | | ######### T###??????#????????????????????????????? | | ????????# ##?????#???????????????????????????????? | | ????##### ######?????????????????????????????????? | | ????# # #??#??????????????????????????????? | | ????# # #?????????????????????????????????? | | ????# < # [ #?????????????????????????????????? | | ????# + #?????????????????????????????????? | | ????# # #?????????????????????????????????? | | ????## ## #?????????#???????????????????????? | | ?????# ## / #??????#??????????????????????????? | | ?????# ## #?????????????????????????????????? | +----------------------------------------------------+ Best States ------------- Heat Dissipation 25 Energy Generation 10 Energy Capacity 250 Matter Stores 232 Matter Capacity 300 Sight Range 16 Terrain Scan Range 16 Terrain Scan Density 10 Armor Coverage 150 Evasion (%) 50 Item Schematics ----------------- None Robot Schematics ------------------ None Fabricated ------------ Nothing Alien Tech Used ----------------- None Achievements -------------- None Challenges ------------ None Game ------ Seed RocketCarbideBooster Manual? 0 Play Time 00:07:21 Cumulative 33.7 hours Start 2024.05.14 @ 00:49:27 End 2024.05.14 @ 00:53:40 Sessions 1 Manual Loads 0 Difficulty Rogue Special Mode Halloween2019/Abominations Game No. 34 Rogue 34 Adventurer 0 Explorer 0 Win Type - Total 1 Types 1/0/0/0/0/0/0/0/0 Lore% 27 Gallery% 28 Achievement% 39 Wizard Run 0 Options --------- Layout 0 ASCII 0 Keyboard 0 Movement Mouse Keybinds 0 Fullscreen 2 Font 14/SmallcapsGlow Map View 36x27 Zoom Use 98% Tactical HUD 1 Map Filters NONE Filters NONE Steam 1 RUN: 94828eec-0819-421f-b710-86be1cca0dcf